[Event "Kadettallsvenskan 2018, sodra kvalet"]
[Site "Vegagatan 20, Gothenburg, Sweden"]
[Date "2018.04.14"]
[Round "1.1"]
[White "Bensryd, Hampus"]
[Black "Lindholm, Gustav"]
[Result "1-0"]
[TimeControl "45 minutes for the whole game + 10 seconds per move from move one."]
[WhiteFideId "1738330"]
[BlackFideId "1736515"]
[WhiteElo "1918"]
[BlackElo "1803"]

1. e4 {[%clk 00:45:05]} {[%emt 00:00:14]} d5 {[%clk 00:45:11]} {[%emt
00:00:09]} 2. exd5 {[%clk 00:44:31]} {[%emt 00:00:44]} Qxd5 {[%clk 00:45:09]}
{[%emt 00:00:12]} 3. Nf3 {[%clk 00:44:25]} {[%emt 00:00:17]} Nf6 {[%clk
00:44:22]} {[%emt 00:00:57]} 4. d4 {[%clk 00:44:06]} {[%emt 00:00:28]} c6
{[%clk 00:43:31]} {[%emt 00:01:01]} 5. c4 {[%clk 00:43:51]} {[%emt 00:00:26]}
Qd6 {[%clk 00:41:30]} {[%emt 00:02:11]} 6. Be2 {[%clk 00:43:11]} {[%emt
00:00:50]} Bg4 {[%clk 00:40:35]} {[%emt 00:01:05]} 7. O-O {[%clk 00:41:59]}
{[%emt 00:01:22]} e6 {[%clk 00:39:24]} {[%emt 00:01:21]} 8. Be3 {[%clk
00:41:01]} {[%emt 00:01:08]} Be7 {[%clk 00:38:23]} {[%emt 00:01:11]} 9. Nc3
{[%clk 00:34:56]} {[%emt 00:06:15]} O-O {[%clk 00:37:28]} {[%emt 00:01:04]} 10.
Qd2 {[%clk 00:33:59]} {[%emt 00:01:07]} Qc7 {[%clk 00:32:33]} {[%emt 00:05:03]}
11. a3 {[%clk 00:32:56]} {[%emt 00:01:14]} a5 {[%clk 00:28:04]} {[%emt
00:04:38]} 12. Rac1 {[%clk 00:29:41]} {[%emt 00:03:25]} Rd8 {[%clk 00:23:35]}
{[%emt 00:04:39]} 13. Rfd1 {[%clk 00:23:17]} {[%emt 00:06:35]} Na6 {[%clk
00:21:08]} {[%emt 00:02:36]} 14. h3 {[%clk 00:21:13]} {[%emt 00:02:15]} Bf5
{[%clk 00:17:41]} {[%emt 00:03:36]} 15. Qe1 {[%clk 00:18:53]} {[%emt 00:02:31]}
Rac8 {[%clk 00:14:06]} {[%emt 00:03:45]} 16. Nh4 {[%clk 00:15:08]} {[%emt
00:03:56]} Bg6 {[%clk 00:12:03]} {[%emt 00:02:13]} 17. Nxg6 {[%clk 00:14:17]}
{[%emt 00:01:02]} hxg6 {[%clk 00:11:44]} {[%emt 00:00:29]} 18. d5 {[%clk
00:12:20]} {[%emt 00:02:06]} Nc5 {[%clk 00:10:11]} {[%emt 00:01:44]} 19. dxe6
{[%clk 00:10:27]} {[%emt 00:02:04]} Nxe6 {[%clk 00:09:42]} {[%emt 00:00:38]} 20.
Na4 {[%clk 00:09:37]} {[%emt 00:01:00]} c5 {[%clk 00:08:50]} {[%emt 00:01:02]}
21. Nc3 {[%clk 00:08:17]} {[%emt 00:01:30]} Qb6 {[%clk 00:06:45]} {[%emt
00:02:08]} 22. Nb5 {[%clk 00:07:42]} {[%emt 00:00:51]} Ne4 {[%clk 00:05:21]}
{[%emt 00:01:34]} 23. Bf3 {[%clk 00:06:52]} {[%emt 00:01:01]} Nd6 {[%clk
00:05:06]} {[%emt 00:00:26]} 24. Nxd6 {[%clk 00:04:12]} {[%emt 00:02:51]} Rxd6
{[%clk 00:04:58]} {[%emt 00:00:17]} 25. Rxd6 {[%clk 00:03:24]} {[%emt
00:00:58]} Bxd6 {[%clk 00:04:56]} {[%emt 00:00:12]} 26. Qc3 {[%clk 00:03:16]}
{[%emt 00:00:19]} Be7 {[%clk 00:04:35]} {[%emt 00:00:31]} 27. Qd2 {[%clk
00:01:44]} {[%emt 00:01:42]} Rd8 {[%clk 00:04:18]} {[%emt 00:00:26]} 28. Qe2
{[%clk 00:01:48]} {[%emt 00:00:07]} Bf6 {[%clk 00:04:22]} {[%emt 00:00:07]} 29.
Rc2 {[%clk 00:01:54]} {[%emt 00:00:04]} Nd4 {[%clk 00:03:59]} {[%emt 00:00:33]}
30. Bxd4 {[%clk 00:02:01]} {[%emt 00:00:04]} Bxd4 {[%clk 00:03:55]} {[%emt
00:00:14]} 31. Bd5 {[%clk 00:02:06]} {[%emt 00:00:05]} Qc7 {[%clk 00:03:17]}
{[%emt 00:00:47]} 32. Qf3 {[%clk 00:02:09]} {[%emt 00:00:07]} Re8 {[%clk
00:02:12]} {[%emt 00:01:15]} 33. Re2 {[%clk 00:02:14]} {[%emt 00:00:05]} Rxe2
{[%clk 00:02:17]} {[%emt 00:00:05]} 34. Qxe2 {[%clk 00:02:23]} {[%emt
00:00:01]} Be5 {[%clk 00:01:44]} {[%emt 00:00:42]} 35. g3 {[%clk 00:01:12]}
{[%emt 00:01:22]} b6 {[%clk 00:01:46]} {[%emt 00:00:08]} 36. Kg2 {[%clk
00:01:14]} {[%emt 00:00:08]} Qe7 {[%clk 00:01:14]} {[%emt 00:00:41]} 37. Qc2
{[%clk 00:00:58]} {[%emt 00:00:25]} Qf6 {[%clk 00:01:11]} {[%emt 00:00:13]} 38.
b3 {[%clk 00:00:57]} {[%emt 00:00:12]} Bd4 {[%clk 00:00:58]} {[%emt 00:00:23]}
39. Qe2 {[%clk 00:00:32]} {[%emt 00:00:35]} Qe5 {[%clk 00:00:44]} {[%emt
00:00:25]} 40. Qc2 {[%clk 00:00:17]} {[%emt 00:00:24]} Qf6 {[%clk 00:00:43]}
{[%emt 00:00:11]} 41. f4 {[%clk 00:00:21]} {[%emt 00:00:05]} Kf8 {[%clk
00:00:30]} {[%emt 00:00:23]} 42. Qe2 {[%clk 00:00:23]} {[%emt 00:00:08]} Qe7
{[%clk 00:00:33]} {[%emt 00:00:07]} 43. Qxe7+ {[%clk 00:00:24]} {[%emt
00:00:09]} Kxe7 {[%clk 00:00:42]} {[%emt 00:00:02]} 44. Kf3 {[%clk 00:00:32]}
{[%emt 00:00:01]} Bb2 {[%clk 00:00:41]} {[%emt 00:00:10]} 45. a4 {[%clk
00:00:42]} {[%emt 00:00:01]} Bd4 {[%clk 00:00:41]} {[%emt 00:00:11]} 46. Ke4
{[%clk 00:00:49]} {[%emt 00:00:02]} Kf6 {[%clk 00:00:44]} {[%emt 00:00:07]} 47.
g4 {[%clk 00:00:53]} {[%emt 00:00:06]} Bb2 {[%clk 00:00:34]} {[%emt 00:00:20]}
48. Bb7 {[%clk 00:00:54]} {[%emt 00:00:09]} Bd4 {[%clk 00:00:38]} {[%emt
00:00:07]} 49. Bc8 {[%clk 00:00:59]} {[%emt 00:00:05]} g5 {[%clk 00:00:24]}
{[%emt 00:00:24]} 50. f5 {[%clk 00:00:59]} {[%emt 00:00:10]} Be5 {[%clk
00:00:23]} {[%emt 00:00:11]} 51. Kd5 {[%clk 00:01:06]} {[%emt 00:00:03]} Bc7
{[%clk 00:00:29]} {[%emt 00:00:04]} 52. Kc6 {[%clk 00:01:15]} {[%emt 00:00:01]}
Bd8 {[%clk 00:00:32]} {[%emt 00:00:08]} 53. Kd7 {[%clk 00:01:23]} {[%emt
00:00:02]} Be7 {[%clk 00:00:40]} {[%emt 00:00:02]} 54. Bb7 {[%clk 00:01:26]}
{[%emt 00:00:06]} g6 {[%clk 00:00:34]} {[%emt 00:00:16]} 55. Be4 {[%clk
00:01:31]} {[%emt 00:00:05]} Ke5 {[%clk 00:00:17]} {[%emt 00:00:27]} 56. fxg6
{[%clk 00:01:29]} {[%emt 00:00:13]} fxg6 {[%clk 00:00:19]} {[%emt 00:00:08]} 57.
Kxe7 {[%clk 00:01:24]} {[%emt 00:00:15]} Kxe4 {[%clk 00:00:28]} {[%emt
00:00:01]} 58. Kf6 {[%clk 00:01:33]} Kd3 {[%clk 00:00:17]} {[%emt 00:00:21]} 59.
Kxg5 {[%clk 00:01:41]} {[%emt 00:00:02]} Kc3 {[%clk 00:00:26]} 60. h4 {[%clk
00:01:32]} {[%emt 00:00:19]} Kxb3 {[%clk 00:00:34]} {[%emt 00:00:02]} 61. h5
{[%clk 00:01:41]} {[%emt 00:00:01]} gxh5 {[%clk 00:00:16]} {[%emt 00:00:28]} 62.
gxh5 {[%clk 00:01:50]} {[%emt 00:00:01]} Kxc4 {[%clk 00:00:25]} {[%emt
00:00:01]} 63. h6 {[%clk 00:01:59]} {[%emt 00:00:01]} Kb3 {[%clk 00:00:24]}
{[%emt 00:00:09]} 64. h7 {[%clk 00:02:08]} {[%emt 00:00:02]} c4 {[%clk
00:00:32]} {[%emt 00:00:02]} 65. h8=Q {[%clk 00:02:17]} {[%emt 00:00:01]} Kxa4
{[%clk 00:00:19]} {[%emt 00:00:23]} 66. Qc3 {[%clk 00:02:16]} {[%emt 00:00:11]}
Kb5 {[%clk 00:00:20]} {[%emt 00:00:10]} 67. Kf4 {[%clk 00:02:24]} {[%emt
00:00:02]} a4 {[%clk 00:00:27]} {[%emt 00:00:02]} 68. Ke4 {[%clk 00:02:33]}
{[%emt 00:00:02]} Kc5 {[%clk 00:00:35]} {[%emt 00:00:01]} 69. Qa3+ {[%clk
00:02:40]} {[%emt 00:00:03]} Kb5 {[%clk 00:00:44]} {[%emt 00:00:02]} 70. Kd4
{[%clk 00:02:49]} {[%emt 00:00:01]} Ka5 {[%clk 00:00:52]} 71. Kxc4 {[%clk
00:02:52]} {[%emt 00:00:06]} b5+ {[%clk 00:01:01]} {[%emt 00:00:02]} 72. Kc5
{[%clk 00:03:01]} {[%emt 00:00:02]} 1-0

[Event "Kadettallsvenskan 2018, sodra kvalet"]
[Site "Vegagatan 20, Gothenburg, Sweden"]
[Date "2018.04.14"]
[Round "1.2"]
[White "Strom-Engdahl, Alexander"]
[Black "Morell, Ludvig"]
[Result "1/2-1/2"]
[TimeControl "45 minutes for the whole game + 10 seconds per move from move one."]
[WhiteFideId "1741586"]
[BlackFideId "1736779"]
[WhiteElo "1720"]
[BlackElo "1517"]

1. Nf3 {[%clk 00:45:13]} {[%emt 00:00:06]} c5 {[%clk 00:45:13]} {[%emt
00:00:08]} 2. g3 {[%clk 00:45:07]} {[%emt 00:00:15]} Nf6 {[%clk 00:45:11]}
{[%emt 00:00:11]} 3. Bg2 {[%clk 00:44:16]} {[%emt 00:01:01]} Nc6 {[%clk
00:44:41]} {[%emt 00:00:41]} 4. d4 {[%clk 00:44:10]} {[%emt 00:00:16]} cxd4
{[%clk 00:42:21]} {[%emt 00:02:31]} 5. Nxd4 {[%clk 00:44:09]} {[%emt 00:00:11]}
Nxd4 {[%clk 00:38:17]} {[%emt 00:04:14]} 6. Qxd4 {[%clk 00:44:04]} {[%emt
00:00:14]} g6 {[%clk 00:38:07]} {[%emt 00:00:20]} 7. Nc3 {[%clk 00:42:56]}
{[%emt 00:01:17]} Bg7 {[%clk 00:37:50]} {[%emt 00:00:28]} 8. O-O {[%clk
00:42:39]} {[%emt 00:00:27]} O-O {[%clk 00:34:14]} {[%emt 00:03:46]} 9. e4
{[%clk 00:39:23]} {[%emt 00:03:26]} d6 {[%clk 00:32:15]} {[%emt 00:02:09]} 10.
Bg5 {[%clk 00:36:12]} {[%emt 00:03:22]} Qc7 {[%clk 00:25:30]} {[%emt 00:06:51]}
11. Rfd1 {[%clk 00:32:03]} {[%emt 00:04:23]} Ng4 {[%clk 00:24:00]} {[%emt
00:01:41]} 12. Qd2 {[%clk 00:31:50]} {[%emt 00:00:22]} Ne5 {[%clk 00:23:05]}
{[%emt 00:01:06]} 13. Nd5 {[%clk 00:30:32]} {[%emt 00:01:28]} Qc5 {[%clk
00:18:14]} {[%emt 00:05:01]} 14. Nxe7+ {[%clk 00:25:56]} {[%emt 00:04:46]} Kh8
{[%clk 00:17:53]} {[%emt 00:00:31]} 15. Nxc8 {[%clk 00:25:14]} {[%emt
00:00:53]} Raxc8 {[%clk 00:17:36]} {[%emt 00:00:27]} 16. Be7 {[%clk 00:19:37]}
{[%emt 00:05:47]} Rfe8 {[%clk 00:17:15]} {[%emt 00:00:30]} 17. Bxd6 {[%clk
00:19:30]} {[%emt 00:00:18]} Qxc2 {[%clk 00:16:32]} {[%emt 00:00:53]} 18. Bxe5
{[%clk 00:15:09]} {[%emt 00:04:31]} Bxe5 {[%clk 00:16:29]} {[%emt 00:00:13]} 19.
Rab1 {[%clk 00:14:49]} {[%emt 00:00:31]} Qxd2 {[%clk 00:16:19]} {[%emt
00:00:19]} 20. Rxd2 {[%clk 00:14:45]} {[%emt 00:00:15]} Red8 {[%clk 00:16:15]}
{[%emt 00:00:14]} 21. Rbd1 {[%clk 00:14:24]} {[%emt 00:00:31]} Rxd2 {[%clk
00:15:24]} {[%emt 00:01:01]} 22. Rxd2 {[%clk 00:14:21]} {[%emt 00:00:13]} Rc1+
{[%clk 00:15:24]} {[%emt 00:00:07]} 23. Bf1 {[%clk 00:14:29]} {[%emt 00:00:04]}
Ra1 {[%clk 00:14:36]} {[%emt 00:00:57]} 24. f4 {[%clk 00:14:09]} {[%emt
00:00:30]} Bc7 {[%clk 00:14:16]} {[%emt 00:00:30]} 25. b3 {[%clk 00:13:53]}
{[%emt 00:00:27]} Kg7 {[%clk 00:13:42]} {[%emt 00:00:43]} 26. e5 {[%clk
00:13:49]} {[%emt 00:00:14]} Ba5 {[%clk 00:13:18]} {[%emt 00:00:34]} 27. Rc2
{[%clk 00:13:28]} {[%emt 00:00:30]} h5 {[%clk 00:13:10]} {[%emt 00:00:20]} 28.
Kg2 {[%clk 00:13:28]} {[%emt 00:00:10]} Rd1 {[%clk 00:13:06]} {[%emt 00:00:10]}
29. Be2 {[%clk 00:12:59]} {[%emt 00:00:42]} Rd5 {[%clk 00:12:49]} {[%emt
00:00:18]} 30. Bf3 {[%clk 00:13:04]} {[%emt 00:00:15]} Rd7 {[%clk 00:12:50]}
{[%emt 00:00:08]} 31. a3 {[%clk 00:11:55]} {[%emt 00:01:20]} Rd3 {[%clk
00:12:26]} {[%emt 00:00:33]} 32. b4 {[%clk 00:12:01]} {[%emt 00:00:05]} Bb6
{[%clk 00:12:18]} {[%emt 00:00:17]} 33. a4 {[%clk 00:11:59]} {[%emt 00:00:14]}
Rd7 {[%clk 00:11:17]} {[%emt 00:01:09]} 34. a5 {[%clk 00:11:26]} {[%emt
00:00:44]} Bd8 {[%clk 00:11:14]} {[%emt 00:00:10]} 35. Ra2 {[%clk 00:10:59]}
{[%emt 00:00:40]} Be7 {[%clk 00:11:10]} {[%emt 00:00:13]} 36. b5 {[%clk
00:11:03]} {[%emt 00:00:07]} b6 {[%clk 00:10:39]} {[%emt 00:00:39]} 37. a6
{[%clk 00:11:00]} {[%emt 00:00:14]} Rd4 {[%clk 00:10:02]} {[%emt 00:00:45]} 38.
Rc2 {[%clk 00:10:32]} {[%emt 00:00:39]} Bc5 {[%clk 00:10:10]} {[%emt 00:00:02]}
39. Bc6 {[%clk 00:10:24]} {[%emt 00:00:18]} Rd1 {[%clk 00:09:39]} {[%emt
00:00:38]} 40. Kh3 {[%clk 00:10:06]} {[%emt 00:00:31]} Rd4 {[%clk 00:09:12]}
{[%emt 00:00:34]} 41. Re2 {[%clk 00:09:56]} {[%emt 00:00:24]} Rd3 {[%clk
00:07:38]} {[%emt 00:01:43]} 42. e6 {[%clk 00:08:33]} {[%emt 00:01:34]} Kf8
{[%clk 00:07:05]} {[%emt 00:00:42]} 43. exf7 {[%clk 00:07:11]} {[%emt
00:01:33]} Be7 {[%clk 00:06:27]} {[%emt 00:00:48]} 44. Be8 {[%clk 00:07:01]}
{[%emt 00:00:20]} h4 {[%clk 00:06:07]} {[%emt 00:00:30]} 45. Re6 {[%clk
00:06:33]} {[%emt 00:00:37]} hxg3 {[%clk 00:05:46]} {[%emt 00:00:31]} 46. hxg3
{[%clk 00:06:37]} {[%emt 00:00:07]} Rd6 {[%clk 00:05:44]} {[%emt 00:00:11]} 47.
Rxd6 {[%clk 00:06:36]} {[%emt 00:00:11]} Bxd6 {[%clk 00:05:51]} {[%emt
00:00:03]} 48. Kg4 {[%clk 00:06:35]} {[%emt 00:00:10]} Kg7 {[%clk 00:05:56]}
{[%emt 00:00:05]} 49. Kf3 {[%clk 00:06:40]} {[%emt 00:00:06]} Kf6 {[%clk
00:05:31]} {[%emt 00:00:35]} 50. g4 {[%clk 00:06:45]} {[%emt 00:00:06]} Ke6
{[%clk 00:04:43]} {[%emt 00:00:56]} 51. Ke4 {[%clk 00:06:51]} {[%emt 00:00:06]}
Bf8 {[%clk 00:04:40]} {[%emt 00:00:12]} 52. f5+ {[%clk 00:06:24]} {[%emt
00:00:37]} gxf5+ {[%clk 00:04:48]} {[%emt 00:00:02]} 53. gxf5+ {[%clk
00:06:28]} {[%emt 00:00:07]} Kd6 {[%clk 00:04:50]} {[%emt 00:00:08]} 54. Kf4
{[%clk 00:06:10]} {[%emt 00:00:28]} Bh6+ {[%clk 00:04:02]} {[%emt 00:00:57]} 55.
Kg4 {[%clk 00:05:52]} {[%emt 00:00:28]} Bf8 {[%clk 00:04:09]} {[%emt 00:00:02]}
56. Kg5 {[%clk 00:05:49]} {[%emt 00:00:14]} Ke7 {[%clk 00:01:27]} {[%emt
00:02:53]} 57. Kg6 {[%clk 00:05:35]} {[%emt 00:00:23]} Kd6 {[%clk 00:00:34]}
{[%emt 00:01:04]} 58. Kh7 {[%clk 00:05:20]} {[%emt 00:00:25]} Ke7 {[%clk
00:00:40]} {[%emt 00:00:03]} 59. Kg8 {[%clk 00:05:23]} {[%emt 00:00:07]} Bh6
{[%clk 00:00:48]} {[%emt 00:00:02]} 60. f6+ {[%clk 00:05:28]} {[%emt 00:00:06]}
Kxf6 {[%clk 00:00:55]} {[%emt 00:00:03]} 61. f8=Q+ {[%clk 00:05:31]} {[%emt
00:00:06]} Bxf8 {[%clk 00:01:03]} {[%emt 00:00:03]} 62. Kxf8 {[%clk 00:05:32]}
{[%emt 00:00:09]} Ke6 {[%clk 00:01:12]} 63. Bc6 {[%clk 00:05:35]} {[%emt
00:00:07]} Kd6 {[%clk 00:01:20]} {[%emt 00:00:02]} 64. Ke8 {[%clk 00:05:41]}
{[%emt 00:00:02]} Kc7 {[%clk 00:01:29]} {[%emt 00:00:04]} 65. Be4 {[%clk
00:05:37]} {[%emt 00:00:13]} Kb8 {[%clk 00:01:38]} {[%emt 00:00:01]} 66. Bd3
{[%clk 00:05:40]} {[%emt 00:00:07]} Ka8 {[%clk 00:01:41]} {[%emt 00:00:07]} 67.
Ke7 {[%emt 00:00:19]} Kb8 {[%emt 00:00:01]} 68. Be4 {[%clk 00:05:25]} {[%emt
00:00:04]} Kc7 {[%clk 00:01:46]} {[%emt 00:00:05]} 69. Kf6 {[%clk 00:05:06]}
{[%emt 00:00:29]} Kb8 {[%clk 00:01:55]} 70. Ke7 {[%clk 00:04:54]} {[%emt
00:00:23]} Kc7 {[%clk 00:02:02]} {[%emt 00:00:02]} 71. Bf5 {[%clk 00:04:45]}
{[%emt 00:00:19]} Kb8 {[%clk 00:02:11]} 72. Kd6 {[%clk 00:04:42]} {[%emt
00:00:13]} Ka8 {[%clk 00:02:15]} {[%emt 00:00:06]} 73. Kc6 {[%clk 00:04:32]}
{[%emt 00:00:20]} Kb8 {[%clk 00:02:23]} {[%emt 00:00:01]} 74. Be4 {[%clk
00:04:35]} {[%emt 00:00:07]} Kc8 {[%clk 00:02:30]} {[%emt 00:00:02]} 75. Bd5
{[%clk 00:03:49]} {[%emt 00:00:56]} Kb8 {[%clk 00:02:33]} {[%emt 00:00:08]}
1/2-1/2

[Event "Kadettallsvenskan 2018, sodra kvalet"]
[Site "Vegagatan 20, Gothenburg, Sweden"]
[Date "2018.04.14"]
[Round "1.3"]
[White "Nord, Alexander"]
[Black "Ben Saeid, Aria"]
[Result "0-1"]
[TimeControl "45 minutes for the whole game + 10 seconds per move from move one."]
[WhiteFideId "1738135"]
[BlackFideId "1741691"]
[WhiteElo "1763"]
[BlackElo "1693"]

1. e4 {[%clk 00:45:16]} {[%emt 00:00:03]} e5 {[%clk 00:45:17]} {[%emt
00:00:04]} 2. Nf3 {[%clk 00:45:16]} {[%emt 00:00:09]} Nc6 {[%clk 00:45:17]}
{[%emt 00:00:10]} 3. Bb5 {[%clk 00:45:17]} {[%emt 00:00:09]} a6 {[%clk
00:45:18]} {[%emt 00:00:09]} 4. Bxc6 {[%clk 00:44:20]} {[%emt 00:01:07]} dxc6
{[%clk 00:45:20]} {[%emt 00:00:09]} 5. O-O {[%clk 00:44:18]} {[%emt 00:00:12]}
Bd6 {[%clk 00:44:57]} {[%emt 00:00:33]} 6. d4 {[%clk 00:43:45]} {[%emt
00:00:43]} exd4 {[%clk 00:44:36]} {[%emt 00:00:31]} 7. Qxd4 {[%clk 00:43:41]}
{[%emt 00:00:13]} Ne7 {[%clk 00:42:22]} {[%emt 00:02:25]} 8. Qxg7 {[%clk
00:39:08]} {[%emt 00:04:42]} Rg8 {[%clk 00:42:22]} {[%emt 00:00:10]} 9. Qxh7
{[%clk 00:37:49]} {[%emt 00:01:29]} Bg4 {[%clk 00:41:41]} {[%emt 00:00:51]} 10.
Ng5 {[%clk 00:34:52]} {[%emt 00:03:07]} Be6 {[%clk 00:40:27]} {[%emt 00:01:23]}
11. Nxe6 {[%clk 00:32:05]} {[%emt 00:02:57]} fxe6 {[%clk 00:40:30]} {[%emt
00:00:07]} 12. Qh5+ {[%clk 00:30:59]} {[%emt 00:01:15]} Ng6 {[%clk 00:38:42]}
{[%emt 00:01:59]} 13. f4 {[%clk 00:24:44]} {[%emt 00:06:25]} Qf6 {[%clk
00:37:14]} {[%emt 00:01:37]} 14. e5 {[%clk 00:16:07]} {[%emt 00:08:48]} Bc5+
{[%clk 00:36:44]} {[%emt 00:00:40]} 15. Kh1 {[%clk 00:16:14]} {[%emt 00:00:03]}
Qf7 {[%clk 00:36:24]} {[%emt 00:00:29]} 16. Nc3 {[%clk 00:15:05]} {[%emt
00:01:20]} O-O-O {[%clk 00:34:23]} {[%emt 00:02:11]} 17. Ne4 {[%clk 00:14:26]}
{[%emt 00:00:49]} Rh8 {[%clk 00:33:27]} {[%emt 00:01:05]} 18. Qe2 {[%clk
00:13:38]} {[%emt 00:00:58]} Rxh2 {[%clk 00:31:26]} {[%emt 00:02:11]} 19. Kxh2
{[%clk 00:13:46]} {[%emt 00:00:01]} Qh7 {[%clk 00:31:17]} {[%emt 00:00:18]} 20.
Kg3 {[%clk 00:13:28]} {[%emt 00:00:30]} Qh4+ {[%clk 00:31:21]} {[%emt
00:00:07]} 21. Kf3 {[%clk 00:13:33]} {[%emt 00:00:04]} Qh5+ {[%clk 00:20:53]}
{[%emt 00:10:39]} 22. g4 {[%clk 00:13:42]} {[%emt 00:00:02]} Qh3+ {[%clk
00:21:01]} {[%emt 00:00:01]} 23. Ng3 {[%clk 00:13:50]} {[%emt 00:00:01]} Nh4+
{[%clk 00:21:10]} {[%emt 00:00:01]} 24. Ke4 {[%clk 00:13:05]} {[%emt 00:00:55]}
Rd4+ {[%clk 00:20:47]} {[%emt 00:00:33]} 25. Ke3 {[%clk 00:13:09]} {[%emt
00:00:06]} Qxg3+ {[%clk 00:20:55]} {[%emt 00:00:02]} 26. Rf3 {[%clk 00:12:59]}
{[%emt 00:00:21]} Rxf4+ {[%clk 00:20:38]} {[%emt 00:00:26]} 0-1